bitfinex/quotes_SOLUSD_20250508
["timestamp","ask_amount","ask_price","bid_price","bid_amount"]
[1746698450316,22.63696653,154.62,154.59,25.99751439]
[1746698450619,22.63696653,154.62,154.58,25.99751439]
[1746698451189,22.63696653,154.62,154.61,25.99751439]
[1746698451398,1.6655,154.74,154.61,51.99502878]
[1746698451399,22.62589694,154.69,154.61,51.99502878]
[1746698451721,22.62589694,154.69,154.68,25.99751439]
[1746698452294,54.9389124,154.72,154.68,25.99751439]
[1746698452495,54.9389124,154.72,154.62,25.99751439]
[1746698452794,54.9389124,154.72,154.68,25.99751439]
[1746698453100,54.9389124,154.72,154.67,25.99751439]
[1746698453292,54.9389124,154.72,154.68,25.99751439]
[1746698453700,25.99751439,154.71,154.6,50.0]
[1746698453898,25.99751439,154.7,154.58,50.0]
[1746698454090,25.99751439,154.7,154.65,25.99751439]
[1746698454520,22.62589694,154.69,154.65,25.99751439]
[1746698455222,22.62589694,154.69,154.68,25.99751439]
[1746698455404,22.62589694,154.69,154.67,25.99751439]
[1746698455596,22.62589694,154.69,154.68,25.99751439]
[1746698456122,32.31740258,154.72,154.68,25.99751439]
[1746698456624,32.31740258,154.72,154.69,25.99751439]
[1746698456801,22.62004781,154.73,154.69,25.99751439]
[1746698457002,80.93191623,154.73,154.62,115.33581439]
[1746698457201,54.93440184,154.73,154.69,25.99751439]
[1746698458304,80.93191623,154.73,154.62,165.33581439]
[1746698458498,80.93191623,154.73,154.68,25.99751439]
[1746698458816,80.93191623,154.73,154.62,115.33581439]
[1746698459002,25.99751439,154.72,154.67,25.99751439]
[1746698459420,25.99751439,154.72,154.62,32.53581439]
[1746698459623,25.99751439,154.72,154.67,25.99751439]
[1746698460222,16.15926572,154.71,154.68,25.99751439]
[1746698460606,16.15926572,154.71,154.69,25.99751439]
[1746698460921,16.15926572,154.71,154.7,25.99751439]
[1746698461298,6.46328852,154.72,154.7,25.99751439]
[1746698461600,6.46161798,154.76,154.71,51.99502878]
[1746698461820,6.46161798,154.76,154.75,25.99751439]
[1746698462023,32.30479774,154.78,154.75,25.99751439]
[1746698462436,58.30231213,154.78,154.73,25.99751439]
[1746698463331,32.30479774,154.78,154.73,25.99751439]
[1746698463535,32.30479774,154.78,154.74,25.99751439]
[1746698464632,54.91753839,154.78,154.74,25.99751439]
[1746698464825,54.91753839,154.78,154.76,25.99751439]
[1746698465027,54.91753839,154.78,154.77,25.99751439]
[1746698465329,22.61274065,154.78,154.77,25.99751439]
[1746698466521,16.15195761,154.78,154.77,25.99751439]
[1746698466839,16.15195761,154.78,154.76,25.99751439]
[1746698467840,4.7378327,154.77,154.76,25.99751439]
[1746698468508,11.19903319,154.77,154.76,25.99751439]
[1746698469023,11.19903319,154.77,154.71,108.79751439]
[1746698469024,27.35203441,154.77,154.71,108.79751439]
[1746698469218,27.35203441,154.77,154.76,25.99751439]
[1746698470138,27.35203441,154.77,154.71,82.8]
[1746698470434,26.44263441,154.77,154.76,25.99751439]
[1746698471143,10.28963319,154.77,154.76,25.99751439]
[1746698471317,3.8284327,154.77,154.76,108.79751439]
[1746698472045,16.14460928,154.86,154.78,50.0]
[1746698472217,22.60205471,154.86,154.85,25.99751439]
[1746698472413,32.28275406,154.89,154.8,108.79751439]
[1746698472648,25.99751439,154.86,154.78,82.8]
[1746698472815,25.99751439,154.85,154.79,25.99751439]
[1746698473019,25.99751439,154.83,154.72,56.0194]
[1746698473327,25.99751439,154.82,154.72,138.8194]
[1746698473526,25.99751439,154.82,154.77,25.99751439]
[1746698473728,25.99751439,154.81,154.72,6.0194]
[1746698474018,25.99751439,154.8,154.72,6.0194]
[1746698474219,168.9573,154.82,154.7,18.72]
[1746698474433,22.61420171,154.77,154.73,25.99751439]
[1746698474629,48.6117161,154.77,154.68,6.2133]
[1746698474837,48.6117161,154.77,154.72,25.99751439]
[1746698475724,25.99751439,154.75,154.7,25.99751439]
[1746698476138,25.99751439,154.74,154.69,25.99751439]
[1746698476329,25.99751439,154.71,154.62,25.99751439]
[1746698476533,25.99751439,154.71,154.61,50.0]
[1746698476534,22.62443438,154.7,154.61,50.0]
[1746698476727,54.94505493,154.7,154.66,25.99751439]
[1746698476927,25.99751439,154.69,154.64,25.99751439]
[1746698477625,54.94505493,154.7,154.6,6.5858]
[1746698477626,25.99751439,154.68,154.6,6.5858]
[1746698477827,25.99751439,154.68,154.63,25.99751439]
[1746698478539,22.62882265,154.67,154.63,25.99751439]
[1746698479521,22.62882265,154.67,154.57,50.0]
[1746698479726,22.62882265,154.67,154.63,25.99751439]
[1746698479727,54.95571215,154.67,154.63,25.99751439]
[1746698480448,80.95322654,154.67,154.62,25.99751439]
[1746698480653,54.95571215,154.67,154.63,25.99751439]
[1746698480828,80.95322654,154.67,154.62,25.99751439]
[1746698482238,25.99751439,154.63,154.56,6.6603]
[1746698482443,25.99751439,154.63,154.58,25.99751439]
[1746698482618,22.63614021,154.62,154.58,25.99751439]
[1746698483018,22.63614021,154.62,154.59,25.99751439]
[1746698484755,16.16867158,154.62,154.59,25.99751439]
[1746698485450,4.78346728,154.61,154.52,6.4465]
[1746698485646,30.78098167,154.61,154.56,25.99751439]
[1746698485844,4.78346728,154.61,154.59,25.99751439]
[1746698486044,4.78346728,154.61,154.6,25.99751439]
[1746698486832,16.16614757,154.65,154.55,50.0]
[1746698487054,16.16614757,154.65,154.63,25.99751439]
[1746698487955,16.16614757,154.65,154.55,89.27029129]
[1746698488122,16.16614757,154.65,154.62,25.99751439]
[1746698488327,11.24989023,154.64,154.63,25.99751439]
[1746698489132,11.24989023,154.64,154.62,25.99751439]
[1746698489743,6.0599,154.73,154.63,25.99751439]
[1746698490034,16.16016933,154.71,154.62,108.79751439]
[1746698490248,16.16016933,154.71,154.69,25.99751439]
[1746698490448,16.16016933,154.71,154.68,25.99751439]
[1746698491156,16.16016933,154.71,154.67,25.99751439]
[1746698491353,4.78300028,154.7,154.68,25.99751439]
[1746698491550,4.78300028,154.7,154.69,25.99751439]
[1746698492347,6.46328852,154.72,154.69,25.99751439]
[1746698492561,6.4628708,154.73,154.71,25.99751439]
[1746698492753,22.62004781,154.73,154.7,25.99751439]
[1746698493647,4.7927204,154.72,154.7,25.99751439]
[1746698493841,6.46370628,154.71,154.64,82.8]
[1746698494049,11.25612327,154.72,154.7,25.99751439]
[1746698494246,11.25612327,154.72,154.71,25.99751439]
[1746698494439,4.7927204,154.72,154.71,25.99751439]
[1746698494831,4.7927204,154.72,154.71,51.99502878]
[1746698495275,6.46257818,154.74,154.71,51.99502878]
[1746698495453,6.46257818,154.74,154.73,25.99751439]
[1746698495637,6.46161798,154.76,154.73,25.99751439]
[1746698495839,6.46078304,154.78,154.75,25.99751439]
[1746698496066,6.46078304,154.78,154.77,25.99751439]
[1746698496467,11.25457054,154.78,154.77,25.99751439]
[1746698497255,4.7937875,154.78,154.77,25.99751439]
[1746698497454,6.46038551,154.79,154.77,25.99751439]
[1746698497775,64.74468906,154.85,154.78,25.99751439]
[1746698497938,64.74468906,154.85,154.76,25.99751439]
[1746698497939,25.99751439,154.82,154.76,25.99751439]
[1746698498439,4.79343051,154.81,154.77,25.99751439]
[1746698498749,4.79343051,154.81,154.8,25.99751439]
[1746698499865,11.25296154,154.81,154.8,25.99751439]
[1746698500047,11.25296154,154.81,154.79,25.99751439]
[1746698500391,27.40178913,154.81,154.79,25.99751439]
[1746698500741,59.69944432,154.81,154.72,82.8]
[1746698501054,4.79343051,154.8,154.78,25.99751439]
[1746698501866,6.46036565,154.79,154.78,25.99751439]
[1746698502345,11.25379616,154.79,154.78,25.99751439]
[1746698502567,11.25379616,154.79,154.71,25.99751439]
[1746698502754,27.4047103,154.79,154.78,25.99751439]
[1746698503552,11.25379616,154.79,154.78,25.99751439]
[1746698504781,4.79343051,154.79,154.78,25.99751439]
[1746698505262,6.460098,154.8,154.78,25.99751439]
[1746698505442,6.460098,154.8,154.79,25.99751439]
[1746698505649,6.45827951,154.84,154.79,25.99751439]
[1746698505840,6.45827951,154.84,154.83,25.99751439]
[1746698506043,16.14550339,154.85,154.83,25.99751439]
[1746698506243,16.14550339,154.85,154.78,89.3973]
[1746698506443,16.14550339,154.85,154.83,25.99751439]
[1746698506652,16.14550339,154.85,154.84,25.99751439]
[1746698507053,20.93158337,154.85,154.84,25.99751439]
[1746698507281,20.93158337,154.85,154.84,20.09751439]
[1746698507472,20.93158337,154.85,154.84,25.99751439]
[1746698507654,20.93158337,154.85,154.83,25.99751439]
[1746698508078,4.78607998,154.84,154.78,89.3973]
[1746698508383,4.78607998,154.84,154.83,25.99751439]
[1746698512168,27.39005827,154.84,154.83,25.99751439]
[1746698515074,59.68145584,154.84,154.76,82.8]
[1746698515392,59.68145584,154.84,154.8,25.99751439]
[1746698515697,4.78607998,154.83,154.8,25.99751439]
[1746698515872,4.78607998,154.83,154.74,157.2607]
[1746698516272,22.60689832,154.82,154.79,17.63899861]
[1746698516662,22.60689832,154.82,154.8,17.63899861]
[1746698517183,22.60689832,154.82,154.74,157.2607]
[1746698517397,22.60689832,154.82,154.79,17.63899861]
[1746698518272,32.29139757,154.84,154.79,17.63899861]
[1746698518273,54.89537586,154.84,154.79,17.63899861]
[1746698519193,4.77588633,154.83,154.79,17.63899861]
[1746698519698,17.63899861,154.82,154.77,17.63899861]
[1746698520304,22.60835862,154.81,154.77,17.63899861]
[1746698520480,98.54501242,154.81,154.71,100.43899861]
[1746698520683,98.54501242,154.81,154.76,17.63899861]
[1746698521101,4.77588633,154.8,154.76,17.63899861]
[1746698521282,4.77588633,154.8,154.77,17.63899861]
[1746698521990,4.77588633,154.8,154.78,17.63899861]
[1746698521991,26.0,154.79,154.78,17.63899861]
[1746698522167,30.77588633,154.79,154.77,17.63899861]
[1746698522371,22.61274065,154.78,154.71,100.43899861]
[1746698522694,22.61274065,154.78,154.77,17.63899861]
[1746698522898,22.61274065,154.78,154.76,17.63899861]
[1746698523073,22.61274065,154.78,154.75,17.63899861]
[1746698523265,22.61274065,154.78,154.74,17.63899861]
[1746698523468,4.77588633,154.77,154.74,17.63899861]
[1746698523665,4.77588633,154.77,154.73,17.63899861]
[1746698523865,4.77588633,154.77,154.75,17.63899861]
[1746698524092,4.77588633,154.77,154.74,17.63899861]
[1746698524285,6.46161798,154.76,154.74,17.63899861]
[1746698524506,22.61566295,154.76,154.73,17.63899861]
[1746698525890,4.78047272,154.75,154.73,17.63899861]
[1746698526269,4.78047272,154.75,154.74,17.63899861]
[1746698526708,11.24250826,154.75,154.74,17.63899861]
[1746698526998,6.46203554,154.75,154.7,6.6564]
[1746698527493,22.61712439,154.75,154.7,6.6564]
[1746698527691,22.61712439,154.75,154.73,17.63899861]
[1746698528205,22.61712439,154.75,154.67,82.8]
[1746698528386,22.61712439,154.75,154.73,17.63899861]
[1746698528707,54.92054646,154.77,154.67,82.8]
[1746698528881,22.61420171,154.77,154.76,17.63899861]
[1746698529078,22.61420171,154.77,154.75,17.63899861]
[1746698529273,22.61420171,154.77,154.76,17.63899861]
[1746698529707,27.4053861,154.77,154.76,17.63899861]
[1746698530016,27.4053861,154.77,154.75,17.63899861]
[1746698531002,4.79118439,154.76,154.75,17.63899861]
[1746698533212,11.25280237,154.76,154.75,17.63899861]
[1746698533377,11.25280237,154.76,154.71,17.63899861]
[1746698533576,11.25280237,154.76,154.75,17.63899861]
[1746698545227,6.45869663,154.83,154.75,17.63899861]
[1746698545515,6.45869663,154.83,154.82,17.63899861]
[1746698545696,22.60276014,154.85,154.82,17.63899861]
[1746698545907,22.60276014,154.85,154.84,17.63899861]
[1746698547524,16.1448977,154.85,154.84,17.63899861]
[1746698548193,6.45744543,154.86,154.84,17.63899861]
[1746698548399,6.45744543,154.86,154.8,17.63899861]
[1746698548400,22.59476274,154.91,154.85,17.63899861]
[1746698548615,22.59476274,154.91,154.88,17.63899861]
[1746698548819,22.59476274,154.91,154.87,17.63899861]
[1746698549622,22.59476274,154.91,154.88,17.63899861]
[1746698550520,22.59476274,154.91,154.87,17.63899861]
[1746698551523,54.87156862,154.91,154.81,138.825]
[1746698551725,54.87156862,154.91,154.87,17.63899861]
[1746698553001,54.87156862,154.91,154.88,17.63899861]
[1746698553311,54.87156862,154.91,154.89,17.63899861]
[1746698553508,54.87156862,154.91,154.82,1.6549]
[1746698553509,22.59476274,154.91,154.9,17.63899861]
[1746698553716,22.58647392,154.96,154.9,17.63899861]
[1746698553918,22.58647392,154.96,154.95,17.63899861]
[1746698554421,6.45327826,154.96,154.95,17.63899861]
[1746698554935,6.45244547,154.98,154.95,17.63899861]
[1746698555100,6.45244547,154.98,154.97,17.63899861]
[1746698555300,6.4521577,154.99,154.97,17.63899861]
[1746698555610,6.4521577,154.99,154.98,17.63899861]
[1746698556297,27.4517487,155.0,154.98,17.63899861]
[1746698556499,27.4517487,155.0,154.99,17.63899861]
[1746698557824,43.58078095,155.0,154.95,82.8]
[1746698558211,17.63899861,154.99,154.91,84.4018]
[1746698558411,17.63899861,154.99,154.93,17.63899861]
[1746698558618,43.58078095,155.0,154.87,84.4432]
[1746698558619,17.63899861,154.95,154.87,84.4432]
[1746698558910,17.63899861,154.93,154.88,17.63899861]
[1746698559119,17.63899861,154.95,154.89,17.63899861]
[1746698559427,45.19389861,154.98,154.89,17.63899861]
[1746698559626,17.63899861,154.94,154.89,17.63899861]
[1746698559799,17.63899861,154.93,154.88,17.63899861]
[1746698560628,17.63899861,154.93,154.86,6.0684]
[1746698560830,17.63899861,154.92,154.86,6.0684]
[1746698561125,17.63899861,154.92,154.87,17.63899861]
[1746698561926,22.59376411,154.91,154.87,17.63899861]
[1746698562130,22.59376411,154.91,154.88,17.63899861]
[1746698563029,22.59376411,154.91,154.83,1.6432]
[1746698563227,22.59376411,154.91,154.88,17.63899861]
[1746698564001,16.13840294,154.91,154.88,17.63899861]
[1746698565923,16.13840294,154.91,154.89,17.63899861]
[1746698567105,16.13840294,154.91,154.9,17.63899861]
[1746698567931,54.86136131,154.94,154.9,17.63899861]
[1746698568443,72.50035992,154.94,154.89,17.63899861]
[1746698570644,54.86136131,154.94,154.89,17.63899861]
[1746698570945,54.86136131,154.94,154.9,17.63899861]
[1746698571127,54.86136131,154.94,154.91,17.63899861]
[1746698571328,22.58938943,154.94,154.92,17.63899861]
[1746698572011,16.13527817,154.94,154.93,17.63899861]
[1746698572449,6.45327826,154.96,154.93,17.63899861]
[1746698572616,6.45327826,154.96,154.9,6.3247]
[1746698572617,6.45327826,154.96,154.95,17.63899861]
[1746698574050,22.58297665,154.99,154.95,17.63899861]
[1746698574239,22.58297665,154.99,154.91,51.5065]
[1746698574240,72.48212107,154.99,154.91,82.8]
[1746698574415,17.63899861,154.98,154.92,17.63899861]
[1746698574846,17.63899861,154.96,154.91,17.63899861]
[1746698575050,17.63899861,154.95,154.9,17.63899861]
[1746698575249,17.63899861,154.94,154.86,89.2133]
[1746698575430,17.63899861,154.94,154.89,17.63899861]
[1746698576140,16.13631962,154.93,154.9,17.63899861]
[1746698577127,16.13631962,154.93,154.86,89.2133]
[1746698577325,16.13631962,154.93,154.89,17.63899861]
[1746698578042,16.13631962,154.93,154.86,6.4133]
[1746698578228,16.13631962,154.93,154.83,82.8]
[1746698578229,17.63899861,154.91,154.83,82.8]
[1746698578432,17.63899861,154.91,154.86,17.63899861]
[1746698578646,17.63899861,154.91,154.85,17.63899861]
[1746698579354,17.63899861,154.88,154.81,82.8]
[1746698579541,17.63899861,154.87,154.79,100.38]
[1746698579843,17.63899861,154.86,154.79,82.8]
[1746698580142,22.60251855,154.85,154.81,17.63899861]
[1746698580352,40.24151716,154.85,154.75,134.4527]
[1746698580530,54.89183078,154.85,154.81,17.63899861]
[1746698580727,72.53082939,154.85,154.75,82.8]
[1746698580927,17.63899861,154.84,154.79,17.63899861]
[1746698581151,17.63899861,154.83,154.75,82.8]
[1746698581362,17.63899861,154.83,154.78,17.63899861]
[1746698581529,17.63899861,154.82,154.76,17.63899861]
[1746698581731,17.63899861,154.81,154.73,82.8]
[1746698581944,17.63899861,154.8,154.75,17.63899861]
[1746698582253,22.61127979,154.79,154.75,17.63899861]
[1746698582830,40.2502784,154.79,154.74,17.63899861]
[1746698583336,40.2502784,154.79,154.73,17.63899861]
[1746698583342,17.63899861,154.78,154.73,17.63899861]
[1746698583542,22.61127979,154.79,154.73,17.63899861]
[1746698583729,17.63899861,154.78,154.73,17.63899861]
[1746698584233,22.61420171,154.77,154.73,17.63899861]
[1746698584434,6.46120049,154.77,154.74,17.63899861]
[1746698584755,6.46120049,154.77,154.75,17.63899861]
[1746698585252,6.46120049,154.77,154.74,17.63899861]
[1746698586151,6.46120049,154.77,154.75,17.63899861]
[1746698586954,6.45994832,154.8,154.76,17.63899861]
[1746698587255,6.45994832,154.8,154.78,17.63899861]
[1746698587443,22.60981912,154.8,154.78,17.63899861]
[1746698587647,6.45786244,154.85,154.79,17.63899861]
[1746698587847,6.45786244,154.85,154.77,26.0]
[1746698588051,6.45786244,154.85,154.84,17.63899861]
[1746698588232,22.60251855,154.85,154.84,17.63899861]
[1746698588632,22.60251855,154.85,154.83,17.63899861]
[1746698588851,22.60251855,154.85,154.77,108.8]
[1746698589051,22.60251855,154.85,154.83,17.63899861]
[1746698589261,22.60251855,154.85,154.82,17.63899861]
[1746698590269,22.60251855,154.85,154.83,17.63899861]
[1746698590557,22.60251855,154.85,154.84,17.63899861]
[1746698590770,22.60251855,154.85,154.83,17.63899861]
[1746698591141,16.14465611,154.85,154.83,17.63899861]
[1746698591664,16.14465611,154.85,154.84,17.63899861]
[1746698592558,40.2371391,154.88,154.83,17.63899861]
[1746698594052,22.59814049,154.88,154.85,17.63899861]
[1746698594257,22.59814049,154.88,154.87,17.63899861]
[1746698594565,22.59814049,154.88,154.8,100.43899861]
[1746698594758,22.59814049,154.88,154.85,17.63899861]
[1746698595566,40.2371391,154.88,154.83,17.63899861]
[1746698595871,17.63899861,154.87,154.82,17.63899861]
[1746698596068,22.60105901,154.86,154.82,17.63899861]
[1746698596269,22.60105901,154.86,154.83,17.63899861]
[1746698598272,16.14361358,154.86,154.82,17.63899861]
[1746698599372,17.63899861,154.85,154.8,17.63899861]
[1746698599673,17.63899861,154.83,154.74,6.2003]
[1746698599968,17.63899861,154.78,154.7,82.8]
[1746698600151,17.63899861,154.77,154.71,17.63899861]
[1746698600346,22.61566295,154.76,154.71,17.63899861]
[1746698600838,22.61566295,154.76,154.72,17.63899861]
[1746698601356,49.94230377,154.79,154.74,17.63899861]
[1746698601665,32.30330516,154.79,154.76,17.63899861]
[1746698601849,22.60981912,154.8,154.76,17.63899861]
[1746698602168,40.24881773,154.8,154.75,17.63899861]
[1746698602473,17.63899861,154.79,154.74,17.63899861]
[1746698602866,22.61127979,154.79,154.76,17.63899861]
[1746698603252,22.61127979,154.79,154.77,17.63899861]
[1746698603445,22.61127979,154.79,154.78,17.63899861]
[1746698603863,22.61127979,154.79,154.73,6.3059]
[1746698604065,22.61127979,154.79,154.75,17.63899861]
[1746698604458,40.2502784,154.79,154.74,17.63899861]
[1746698604769,40.2502784,154.79,154.72,17.63899861]
[1746698604770,22.61127979,154.79,154.72,17.63899861]
[1746698604990,17.63899861,154.77,154.72,17.63899861]
[1746698605352,17.63899861,154.76,154.69,6.3059]
[1746698605877,17.63899861,154.75,154.7,17.63899861]
[1746698606080,17.63899861,154.76,154.71,17.63899861]
[1746698606374,32.30182828,154.79,154.71,17.63899861]
[1746698606547,17.63899861,154.77,154.72,17.63899861]
[1746698606750,17.63899861,154.78,154.73,17.63899861]
[1746698606979,6.46120049,154.77,154.74,17.63899861]
[1746698607275,6.46120049,154.77,154.75,17.63899861]
[1746698608987,16.15279744,154.78,154.75,17.63899861]
[1746698609472,16.15279744,154.78,154.74,17.63899861]
[1746698610566,16.15279744,154.78,154.69,139.1059]
[1746698610878,16.15279744,154.78,154.74,17.63899861]
[1746698611079,22.61358048,154.78,154.74,17.63899861]
[1746698611468,22.61358048,154.78,154.69,139.1059]
[1746698611469,72.55649432,154.78,154.73,17.63899861]
[1746698611670,17.63899861,154.77,154.71,17.63899861]
[1746698611863,17.63899861,154.76,154.71,17.63899861]
[1746698612266,17.63899861,154.76,154.69,6.3059]
[1746698612467,17.63899861,154.76,154.71,17.63899861]
[1746698612666,22.61358048,154.78,154.75,17.63899861]
[1746698612881,6.45994832,154.8,154.77,17.63899861]
[1746698613088,22.60397829,154.84,154.79,17.63899861]
[1746698613660,22.60397829,154.84,154.8,17.63899861]
[1746698613861,22.60397829,154.84,154.81,17.63899861]
[1746698614994,16.14569878,154.84,154.81,17.63899861]
[1746698616189,16.14569878,154.84,154.75,51.5418]
[1746698616490,16.14569878,154.84,154.8,17.63899861]
[1746698617293,22.60397829,154.84,154.8,17.63899861]
[1746698618465,16.14569878,154.84,154.82,17.63899861]
[1746698619995,16.14569878,154.84,154.81,17.63899861]
[1746698620374,16.14569878,154.84,154.82,17.63899861]
[1746698620790,16.14569878,154.84,154.8,17.63899861]
[1746698621000,33.78469739,154.84,154.79,17.63899861]
[1746698621408,6.45786244,154.85,154.83,17.63899861]
[1746698621583,24.09394309,154.92,154.84,17.63899861]
[1746698621906,22.59230569,154.92,154.88,17.63899861]
[1746698622409,22.59230569,154.92,154.89,17.63899861]
[1746698622610,22.59230569,154.92,154.9,17.63899861]
[1746698622895,6.45494448,154.92,154.9,17.63899861]
[1746698623293,6.45494448,154.92,154.91,17.63899861]
[1746698623804,22.58883226,154.95,154.91,17.63899861]
[1746698624378,22.58883226,154.95,154.9,17.63899861]
[1746698624573,22.58883226,154.95,154.91,17.63899861]
[1746698624878,6.45369474,154.95,154.89,23.98689861]
[1746698625080,17.63899861,154.94,154.85,42.25754886]
[1746698625392,17.63899861,154.94,154.89,17.63899861]
[1746698625593,22.58793159,154.95,154.91,17.63899861]
[1746698625799,48.58793159,154.95,154.92,17.63899861]
[1746698626884,48.58793159,154.95,154.91,17.63899861]
[1746698627085,48.58793159,154.95,154.92,17.63899861]
[1746698627797,48.58793159,154.95,154.87,18.64964886]
[1746698627993,66.2269302,154.95,154.9,17.63899861]
[1746698628182,17.63899861,154.93,154.85,89.1479]
[1746698628687,17.63899861,154.9,154.86,17.63899861]
[1746698629707,17.63899861,154.91,154.86,17.63899861]
[1746698629908,22.59522272,154.9,154.86,17.63899861]
[1746698630279,22.59522272,154.9,154.89,17.63899861]
[1746698631128,6.45577792,154.9,154.89,17.63899861]
[1746698631679,6.45577792,154.9,154.84,18.64964886]
[1746698631892,6.45577792,154.9,154.89,17.63899861]
[1746698632093,22.59402281,154.91,154.89,17.63899861]
[1746698632686,22.59402281,154.91,154.84,82.8]
[1746698632883,72.5098273,154.91,154.84,82.8]
[1746698633089,17.63899861,154.89,154.84,17.63899861]
[1746698633697,54.87082869,154.91,154.87,17.63899861]
[1746698634008,72.5098273,154.91,154.86,17.63899861]
[1746698635991,22.59402281,154.91,154.88,17.63899861]
[1746698636308,22.59402281,154.91,154.89,17.63899861]
[1746698636914,16.13866164,154.91,154.84,50.0]
[1746698637085,16.13866164,154.91,154.88,17.63899861]
[1746698637293,16.13866164,154.91,154.82,287.34964886]
[1746698637479,17.63899861,154.9,154.82,132.8]
[1746698637685,17.63899861,154.9,154.86,17.63899861]
[1746698638687,17.63899861,154.9,154.82,82.8]
[1746698638886,6.45661157,154.88,154.84,17.63899861]
[1746698639097,22.59814049,154.88,154.84,17.63899861]
[1746698639910,54.88119834,154.88,154.84,17.63899861]
[1746698640210,22.59814049,154.88,154.87,17.63899861]
[1746698640704,6.45661157,154.88,154.87,17.63899861]
[1746698640895,22.59084747,154.93,154.87,17.63899861]
[1746698641098,22.59084747,154.93,154.9,17.63899861]
[1746698641411,22.59084747,154.93,154.91,17.63899861]
[1746698642312,22.59084747,154.93,154.85,132.8]
[1746698642313,6.45452785,154.93,154.92,17.63899861]
[1746698643002,22.58746228,154.96,154.92,17.63899861]
[1746698643209,22.58746228,154.96,154.93,17.63899861]
[1746698643409,22.58746228,154.96,154.95,17.63899861]
[1746698644514,6.45327826,154.96,154.95,17.63899861]
[1746698645110,22.5830269,154.99,154.95,17.63899861]
[1746698645291,22.5830269,154.99,154.91,50.0]
[1746698645292,22.5830269,154.99,154.96,17.63899861]
[1746698646314,22.5830269,154.99,154.98,17.63899861]
[1746698646500,22.5830269,154.99,154.97,17.63899861]
[1746698647399,22.5830269,154.99,154.96,17.63899861]
[1746698647796,22.5830269,154.99,154.97,17.63899861]
[1746698648123,22.5830269,154.99,154.98,17.63899861]
[1746698649110,6.45202916,154.99,154.98,17.63899861]
[1746698650025,6.45202916,154.99,154.96,17.63899861]
[1746698650200,6.45202916,154.99,154.91,127.44964886]
[1746698650201,22.58210206,154.99,154.91,127.44964886]
[1746698650408,40.22110067,154.99,154.91,108.8]
[1746698650724,40.22110067,154.99,154.95,17.63899861]
[1746698650894,40.22110067,154.99,154.91,108.8]
[1746698651100,40.22110067,154.99,154.94,17.63899861]
[1746698651301,40.22110067,154.99,154.95,17.63899861]
[1746698651823,17.63899861,154.97,154.92,17.63899861]
[1746698652224,17.63899861,154.97,154.9,82.8]
[1746698652407,17.63899861,154.97,154.92,17.63899861]
[1746698653010,22.58647392,154.96,154.88,89.1391]
[1746698653220,22.58647392,154.96,154.93,17.63899861]
[1746698653717,6.45327826,154.96,154.94,17.63899861]
[1746698654733,6.45327826,154.96,154.89,132.8]
[1746698654903,6.45327826,154.96,154.93,17.63899861]
[1746698655104,22.58507712,154.97,154.93,17.63899861]
[1746698657924,22.58507712,154.97,154.94,17.63899861]
[1746698658811,22.58507712,154.97,154.93,17.63899861]
[1746698659213,6.45286184,154.97,154.96,17.63899861]
[1746698659734,6.45202916,154.99,154.96,17.63899861]
[1746698659945,6.45202916,154.99,154.98,17.63899861]
[1746698661235,22.58210206,154.99,154.96,100.43899861]
[1746698661530,22.58210206,154.99,154.97,17.63899861]
[1746698661726,6.45202916,154.99,154.98,17.63899861]
[1746698662615,22.58210206,154.99,154.96,82.8]
[1746698662822,40.22110067,154.99,154.96,82.8]
[1746698663021,40.22110067,154.99,154.93,17.63899861]
[1746698663022,17.63899861,154.97,154.93,17.63899861]
[1746698663222,22.58647392,154.96,154.93,17.63899861]
[1746698663710,22.58647392,154.96,154.91,82.8]
[1746698663905,22.58647392,154.96,154.93,17.63899861]
[1746698664409,22.58647392,154.96,154.95,17.63899861]
[1746698664637,22.58647392,154.96,154.94,17.63899861]
[1746698665146,22.58355916,154.98,154.94,17.63899861]
[1746698665634,22.58355916,154.98,154.95,17.63899861]
[1746698666641,16.13111369,154.98,154.95,17.63899861]
[1746698667337,6.45202916,154.99,154.97,17.63899861]
[1746698667639,21.0,155.0,154.98,17.63899861]
[1746698667831,21.0,155.0,154.99,17.63899861]
[1746698668915,21.0,155.0,154.99,100.43899861]
[1746698669334,21.0,155.0,154.99,175.54067663]
[1746698669845,16.11969618,155.09,155.01,50.0]
[1746698670017,6.44828475,155.08,155.06,17.63899861]
[1746698670217,22.56899664,155.08,155.06,17.63899861]
[1746698670417,22.56899664,155.08,155.07,17.63899861]
[1746698670418,6.44828475,155.08,155.07,17.63899861]
[1746698670635,22.56608638,155.1,155.05,6.2525]
[1746698670834,22.56608638,155.1,155.06,17.63899861]
[1746698671243,22.56608638,155.1,155.07,17.63899861]
[1746698671543,22.56608638,155.1,155.05,56.2525]
[1746698671725,22.56608638,155.1,155.07,17.63899861]
[1746698672114,6.44745325,155.1,155.08,17.63899861]
[1746698672339,6.44745325,155.1,155.08,100.43899861]
[1746698672742,6.44745325,155.1,155.08,82.8]
[1746698673543,17.63899861,155.09,155.08,82.8]